Workbook

Sheet Title
C1: Calculation practice activities to accompany CHAPTER 12
C3: Social Statistics in Action: A Canadian Introduction
C4: Andrea M. Noack
C6: Oxford University Press, 2018
C8: For more information, visit:
C9: https://www.oupcanada.com/catalog/9780199015214.html

Sheet Multiple Regression Predictions
B1: PRACTICE CALCULATING REGRESSION PREDICTIONS (MULTIPLE LINEAR REGRESSION)
B3: Use the constant and slope coefficients to find the predicted value on the dependent variable (y) for a case with the values on the independent variables (x1, x2 and x3) specified in the yellow highlighted cells. Keep two decimal places throughout your calculations. To check your answer, click on the 'Show Answer' button.
B5: Linear Regression Coefficients
B6: Constant Coefficient (a): | C6: 18.93
B7: Slope Coefficient for Variable X1 (b1): | C7: 4.66
B8: Slope Coefficient for Variable X2 (b2): | C8: -8.42
B9: Slope Coefficient for Variable X3 (b3): | C9: 9.75
B11: The Case you are Making a Prediction for:
B12: Value on Variable X1: | C12: 76
B13: Value on Variable X2: | C13: 36.16 | E13: Need some help?
B14: Value on Variable X3 (dummy variable): | C14: 0
B15: Predicted Value on Variable Y: | C15: hidden
B17: REGRESSION PREDICTION CALCULATIONS
B18: Predicted Value on Variable Y
C19: = 18.93 + (4.66 x 76) + (-8.42 x 36.16) + (9.75 x 0)
C20: = ? + ? + ? + ?
C21: = ?

Sheet Multiple Regress. Coefficients
B1: PRACTICE CALCULATING REGRESSION COEFFICIENTS (MULTIPLE LINEAR REGRESSION, TWO INDEPENDENT VARIABLES)
B3: Use the correlations and standard deviations in the yellow highlighted cells to calculate the partial slope coefficient for each of the two independent variables. Then, use the partial slope coefficients and the variable means to calculate the constant coefficient. Keep four decimal places throughout your calculations. To check your answers, click on the 'Show Slope Coefficients' and/or 'Show Constant Coefficient' buttons.
B5: Means
B6: Mean of Variable X1 (x-bar1): | C6: 25.6
B7: Mean of Variable X2 (x-bar2): | C7: 72.6
B8: Mean of Variable Y (y-bar): | C8: 187.47
B10: Standard Deviations
B11: Standard deviation of Variable X1 (sx₁): | C11: 14.31
B12: Standard deviation of Variable X2 (sx₂): | C12: 48.23
B13: Standard deviation of Variable Y (sy): | C13: 145.95
B15: Correlations between Variables
B16: Correlation between Variables X1 and X2 (rx₁,x₂): | C16: 0.34
B17: Correlation between Variables X1 and Y (rx₁,y): | C17: 0.5
B18: Correlation between Variables X2 and Y (rx₂,y): | C18: 0.27
B20: Regression Coefficients
B21: Partial slope coefficient for Variable X1: | C21: hidden | E21: Need some help?
B22: Partial slope coefficient for Variable X2: | C22: hidden
B23: Constant Coefficient: | C23: hidden
B25: PARTIAL SLOPE COEFFICIENT FOR VARIABLE X1 CALCULATIONS
B26: Partial Slope Coefficient (bx₁)
C27: = {[0.5 - (0.34 x 0.27)] ÷ [1 - (0.34²)]} x (145.95 ÷ 14.31)
C28: = [(? - ?) ÷ (? - ?)] x (? ÷ ?)
C29: = (? ÷ ?) x (?)
C30: = ? x ?
C31: = ?
B33: PARTIAL SLOPE COEFFICIENT FOR VARIABLE X2 CALCULATIONS
B34: Partial Slope Coefficient (bx₂)
C35: = {[0.27 - (0.34 x 0.5)] ÷ [1 - (0.34²)]} x (145.95 ÷ 48.23)
C36: = [(? - ?) ÷ (? - ?)] x (? ÷ ?)
C37: = (? ÷ ?) x (?)
C38: = ? x ?
C39: = ?
B41: CONSTANT COEFFICIENT CALCULATIONS
B42: Constant Coefficient
C43: = 187.47 - (4.708 x 25.6) - (0.3423 x 72.6)
C44: = ? - ? - ?
C45: = ?

Sheet Standardized Slope Coefficients
B1: PRACTICE CALCULATING STANDARDIZED SLOPE COEFFICIENTS (MULTIPLE LINEAR REGRESSION)
B3: Use the variable standard deviations to calculate standardized slope coefficients for the two unstandardized slope coefficients in the yellow highlighted cells. Keep four decimal places throughout your calculations. To check your answers, click on the 'Show Answers' button.
B5: Standard Deviations
B6: Standard deviation of Variable X1 (sx): | D6: 13.61
B7: Standard deviation of Variable X2 (sx): | D7: 57.51
B8: Standard deviation of Variable Y (sy): | D8: 127.83
B10: Linear Regression Coefficients (Unstandardized)
B11: Constant Coefficient (a): | D11: 64.62
B12: Slope Coefficient for Variable X1 (bx): | D12: 3.27
B13: Slope Coefficient for Variable X2 (bx): | D13: 0.33 | F13: Need some help?
B15: Standardized Slope Coefficients
B16: Standardized Slope Coefficient for Variable X1: | D16: hidden
B17: Standardized Slope Coefficient for Variable X2: | D17: hidden
B19: STANDARDIZED SLOPE COEFFICIENT FOR VARIABLE X1 CALCULATIONS
B20: Standardized Slope Coefficient (βx₁)
C21: = 3.27 x (13.61 ÷ 127.83)
C22: = ? x ?
C23: = ?
B25: STANDARDIZED SLOPE COEFFICIENT FOR VARIABLE X2 CALCULATIONS
B26: Standardized Slope Coefficient (βx₂)
C27: = 0.33 x (57.51 ÷ 127.83)
C28: = ? x ?
C29: = ?

Sheet Regression Predictions-A (hidden)
B1: PRACTICE CALCULATING REGRESSION PREDICTIONS (SIMPLE LINEAR REGRESSION)
B5: Linear Regression Coefficients
A6: =RANDBETWEEN(100,5000)/100 -> 32.81 | B6: Constant Coefficient (a) | C6: 18.93
A7: =RANDBETWEEN(100,1000)/100 -> 6.05 | B7: Slope Coefficient for Variable X1 (b1) | C7: 4.66
A8: =(RANDBETWEEN(100,1000)/100)*-1 -> -2.55 | B8: Slope Coefficient for Variable X2 (b2) | C8: -8.42
A9: =RANDBETWEEN(100,1000)/100 -> 1.22 | B9: Slope Coefficient for Variable X3 (b3) | C9: 9.75
B11: The Case you are Making a Prediction for:
A12: =RANDBETWEEN(16,80) -> 63 | B12: Value on Variable X1 | C12: 76
A13: =RANDBETWEEN(100,5000)/100 -> 31.17 | B13: Value on Variable X2 | C13: 36.16
A14: =RANDBETWEEN(0,1) -> 0 | B14: Value on Variable X3 | C14: 0
B15: Predicted Value on Variable Y | C15: =D21 -> 68.62
B17: REGRESSION PREDICTION CALCULATIONS
B18: Predicted value on variable Y | C18: FORMULA
C19: =CONCATENATE("'= ",C6," + (",C7," x ",C12,") + (",C8," x ",C13,") + (",C9," x ",C14,")") -> '= 18.93 + (4.66 x 76) + (-8.42 x 36.16) + (9.75 x 0)
C20: =CONCATENATE("'= ",C6," + (",D20,") + (",E20,") + (",F20,")") -> '= 18.93 + (354.16) + (-304.47) + (0) | D20: =ROUND(C12*C7,2) -> 354.16 | E20: =ROUND(C8*C13,2) -> -304.47 | F20: =ROUND(C9*C14,2) -> 0
C21: =CONCATENATE("'= ",D21) -> '= 68.62 | D21: =ROUND(C6+D20+E20+F20,2) -> 68.62

Sheet Multiple Regression Coeff-A (hidden)
B1: PRACTICE CALCULATING REGRESSION COEFFICIENTS (MULTIPLE LINEAR REGRESSION, TWO INDEPENDENT VARIABLES)
B5: Means
B6: Mean of Variable X1 | C6: =ROUND(AVERAGE($H$6:$H$106),2) -> 25.6 | H6: 45 | I6: 98 | J6: 373 | L6: =RANDBETWEEN(0,50) -> 34 | M6: =IF(L6<25,RANDBETWEEN(0,100),RANDBETWEEN(0,200)) -> 152 | N6: =IF(L6>25,RANDBETWEEN(0,500),RANDBETWEEN(0,200)) -> 280
B7: Mean of Variable X2 | C7: =ROUND(AVERAGE($I$6:$I$106),2) -> 72.6 | H7: 14 | I7: 27 | J7: 35 | L7: =RANDBETWEEN(0,50) -> 47 | M7: =IF(L7<25,RANDBETWEEN(0,100),RANDBETWEEN(0,200)) -> 86 | N7: =IF(L7>25,RANDBETWEEN(0,500),RANDBETWEEN(0,200)) -> 366
B8: Mean of Variable Y | C8: =ROUND(AVERAGE($J$6:$J$106),2) -> 187.47 | H8: 34 | I8: 28 | J8: 36 | L8: 30 | M8: 10 | N8: 316
H9: 31 | I9: 145 | J9: 369 | L9: 34 | M9: 46 | N9: 257
B10: Standard Deviations | H10: 50 | I10: 15 | J10: 321 | L10: 18 | M10: 80 | N10: 186
B11: Standard deviation of Variable X1 | C11: =ROUND(_xlfn.STDEV.S($H$6:$H$106),2) -> 14.31 | H11: 10 | I11: 46 | J11: 155 | L11: 11 | M11: 48 | N11: 109
B12: Standard deviation of Variable X2 | C12: =ROUND(_xlfn.STDEV.S($I$6:$I$106),2) -> 48.23 | H12: 27 | I12: 107 | J12: 452 | L12: 30 | M12: 11 | N12: 399
B13: Standard deviation of Variable Y | C13: =ROUND(_xlfn.STDEV.S($J$6:$J$106),2) -> 145.95 | H13: 9 | I13: 75 | J13: 190 | L13: 41 | M13: 161 | N13: 253
H14: 45 | I14: 65 | J14: 497 | L14: 36 | M14: 100 | N14: 64
B15: Correlations between Variables | H15: 32 | I15: 62 | J15: 329 | L15: 21 | M15: 73 | N15: 34
B16: Correlation between Variables X1 and X2 | C16: =ROUND(CORREL(H$6:H$106,I$6:I$106),2) -> 0.34 | H16: 34 | I16: 156 | J16: 286 | L16: 32 | M16: 147 | N16: 181
B17: Correlation between Variables X1 and Y | C17: =ROUND(CORREL(H$6:H$106,J$6:J$106),2) -> 0.5 | H17: 42 | I17: 119 | J17: 470 | L17: 28 | M17: 74 | N17: 108
B18: Correlation between Variables X2 and Y | C18: =ROUND(CORREL(I$6:I$106,J$6:J$106),2) -> 0.27 | H18: 12 | I18: 21 | J18: 92 | L18: 11 | M18: 87 | N18: 49
H19: 28 | I19: 110 | J19: 461 | L19: 41 | M19: 21 | N19: 480
B20: Regression Coefficients | E20: Need some help? | H20: 47 | I20: 40 | J20: 370 | L20: 31 | M20: 3 | N20: 100
B21: Partial slope coefficient for Variable X1 | C21: =F31 -> 4.708 | H21: 32 | I21: 59 | J21: 379 | L21: 7 | M21: 56 | N21: 187
B22: Partial slope coefficient for Variable X2 | C22: =F39 -> 0.3423 | H22: 41 | I22: 192 | J22: 0 | L22: 43 | M22: 58 | N22: 221
B23: Constant Coefficient | C23: =F45 -> 42.0942 | H23: 40 | I23: 106 | J23: 215 | L23: 27 | M23: 0 | N23: 236
H24: 12 | I24: 60 | J24: 198 | L24: 50 | M24: 90 | N24: 454
B25: PARTIAL SLOPE COEFFICIENT FOR VARIABLE X1 CALCULATIONS | H25: 31 | I25: 146 | J25: 479 | L25: 48 | M25: 103 | N25: 7
B26: Partial Slope Coefficient (b1) | H26: 27 | I26: 65 | J26: 418 | L26: 0 | M26: 21 | N26: 21
C27: =CONCATENATE("'= {[",C17," - (",C16," x ",C18,")] ÷ [1 - (",C16,F27,")]} x (",C13," ÷ ",C11,")") -> '= {[0.5 - (0.34 x 0.27)] ÷ [1 - (0.34²)]} x (145.95 ÷ 14.31) | F27: ² | H27: 35 | I27: 163 | J27: 169 | L27: 25 | M27: 167 | N27: 87
C28: =CONCATENATE("'= [(",C17," - ",F28,") ÷ (1 - ",G28,")] x (",C13," ÷ ",C11,")") -> '= [(0.5 - 0.0918) ÷ (1 - 0.1156)] x (145.95 ÷ 14.31) | F28: =ROUND(C16*C18,4) -> 0.0918 | G28: =ROUND(C16*C16,4) -> 0.1156 | H28: 18 | I28: 99 | J28: 21 | L28: 16 | M28: 78 | N28: 129
C29: =CONCATENATE("'= (",F29," ÷ ",G29,") x (",G30,")") -> '= (0.4082 ÷ 0.8844) x (10.1992) | F29: =ROUND(C17-F28,4) -> 0.4082 | G29: =ROUND(1-G28,4) -> 0.8844 | H29: 43 | I29: 33 | J29: 460 | L29: 23 | M29: 7 | N29: 98
C30: =CONCATENATE("'= ",F30," x ",G30) -> '= 0.4616 x 10.1992 | F30: =ROUND(F29/G29,4) -> 0.4616 | G30: =ROUND(C13/C11,4) -> 10.1992 | H30: 42 | I30: 115 | J30: 324 | L30: 44 | M30: 84 | N30: 417
C31: =CONCATENATE("'= ",F31) -> '= 4.708 | F31: =ROUND(F30*G30,4) -> 4.708 | H31: 26 | I31: 47 | J31: 274 | L31: 13 | M31: 35 | N31: 18
H32: 42 | I32: 43 | J32: 118 | L32: 24 | M32: 6 | N32: 133
B33: PARTIAL SLOPE COEFFICIENT FOR VARIABLE X2 CALCULATIONS | H33: 32 | I33: 103 | J33: 73 | L33: 13 | M33: 26 | N33: 183
B34: Partial Slope Coefficient (b2) | H34: 5 | I34: 53 | J34: 111 | L34: 29 | M34: 68 | N34: 500
C35: =CONCATENATE("'= {[",C18," - (",C16," x ",C17,")] ÷ [1 - (",C16,F27,")]} x (",C13," ÷ ",C12,")") -> '= {[0.27 - (0.34 x 0.5)] ÷ [1 - (0.34²)]} x (145.95 ÷ 48.23) | H35: 10 | I35: 95 | J35: 52 | L35: 10 | M35: 67 | N35: 22
C36: =CONCATENATE("'= [(",C18," - ",F36,") ÷ (1 - ",G36,")] x (",C13," ÷ ",C12,")") -> '= [(0.27 - 0.17) ÷ (1 - 0.1156)] x (145.95 ÷ 48.23) | F36: =ROUND(C16*C17,4) -> 0.17 | G36: =ROUND(C16*C16,4) -> 0.1156 | H36: 18 | I36: 16 | J36: 76 | L36: 2 | M36: 77 | N36: 86
C37: =CONCATENATE("'= (",F37," ÷ ",G37,") x (",G38,")") -> '= (0.1 ÷ 0.8844) x (3.0261) | F37: =ROUND(C18-F36,4) -> 0.1 | G37: =ROUND(1-G36,4) -> 0.8844 | H37: 21 | I37: 36 | J37: 98 | L37: 0 | M37: 43 | N37: 137
C38: =CONCATENATE("'= ",F38," x ",G38) -> '= 0.1131 x 3.0261 | F38: =ROUND(F37/G37,4) -> 0.1131 | G38: =ROUND(C13/C12,4) -> 3.0261 | H38: 16 | I38: 93 | J38: 30 | L38: 31 | M38: 55 | N38: 41
C39: =CONCATENATE("'= ",F39) -> '= 0.3423 | F39: =ROUND(F38*G38,4) -> 0.3423 | H39: 14 | I39: 7 | J39: 34 | L39: 25 | M39: 172 | N39: 95
H40: 49 | I40: 26 | J40: 260 | L40: 35 | M40: 18 | N40: 67
B41: CONSTANT COEFFICIENT | H41: 38 | I41: 90 | J41: 418 | L41: 12 | M41: 28 | N41: 70
B42: Constant Coefficient | H42: 8 | I42: 77 | J42: 162 | L42: 32 | M42: 62 | N42: 324
C43: =CONCATENATE("'= ",C8," - (",F31," x ",C6,") - (",F39," x ",C7,")") -> '= 187.47 - (4.708 x 25.6) - (0.3423 x 72.6) | H43: 47 | I43: 105 | J43: 118 | L43: 28 | M43: 121 | N43: 448
C44: =CONCATENATE("'= ",C8," - (",F44,") - (",G44,")") -> '= 187.47 - (120.5248) - (24.851) | F44: =ROUND(F31*C6,4) -> 120.5248 | G44: =ROUND(F39*C7,4) -> 24.851 | H44: 0 | I44: 5 | J44: 154 | L44: 42 | M44: 89 | N44: 373
C45: =CONCATENATE("'= ",F45) -> '= 42.0942 | F45: =ROUND(C8-F44-G44,4) -> 42.0942 | H45: 49 | I45: 125 | J45: 87 | L45: 13 | M45: 75 | N45: 32
H46: 39 | I46: 111 | J46: 408 | L46: 14 | M46: 66 | N46: 103
H47: 16 | I47: 45 | J47: 96 | L47: 10 | M47: 86 | N47: 159
H48: 15 | I48: 84 | J48: 7 | L48: 37 | M48: 125 | N48: 108
H49: 25 | I49: 168 | J49: 196 | L49: 15 | M49: 28 | N49: 98
H50: 27 | I50: 39 | J50: 14 | L50: 35 | M50: 48 | N50: 3
H51: 20 | I51: 80 | J51: 180 | L51: 44 | M51: 37 | N51: 179
H52: 26 | I52: 50 | J52: 471 | L52: 21 | M52: 26 | N52: 88
H53: 29 | I53: 173 | J53: 472 | L53: 7 | M53: 24 | N53: 143
H54: 6 | I54: 16 | J54: 50 | L54: 15 | M54: 54 | N54: 137
H55: 45 | I55: 129 | J55: 435 | L55: 27 | M55: 134 | N55: 274
H56: 39 | I56: 103 | J56: 120 | L56: 44 | M56: 89 | N56: 357
H57: 29 | I57: 42 | J57: 361 | L57: 35 | M57: 44 | N57: 35
H58: 1 | I58: 79 | J58: 192 | L58: 25 | M58: 139 | N58: 187
H59: 17 | I59: 0 | J59: 183 | L59: 24 | M59: 74 | N59: 24
H60: 26 | I60: 88 | J60: 204 | L60: 23 | M60: 10 | N60: 84
H61: 10 | I61: 52 | J61: 24 | L61: 16 | M61: 92 | N61: 49
H62: 7 | I62: 20 | J62: 81 | L62: 22 | M62: 69 | N62: 87
H63: 37 | I63: 6 | J63: 184 | L63: 17 | M63: 19 | N63: 94
H64: 10 | I64: 82 | J64: 9 | L64: 37 | M64: 114 | N64: 170
H65: 46 | I65: 145 | J65: 344 | L65: 48 | M65: 15 | N65: 377
H66: 40 | I66: 135 | J66: 162 | L66: 2 | M66: 84 | N66: 28
H67: 37 | I67: 47 | J67: 50 | L67: 0 | M67: 17 | N67: 10
H68: 3 | I68: 79 | J68: 19 | L68: 26 | M68: 159 | N68: 99
H69: 20 | I69: 56 | J69: 132 | L69: 44 | M69: 185 | N69: 49
H70: 21 | I70: 60 | J70: 54 | L70: 39 | M70: 95 | N70: 457
H71: 9 | I71: 18 | J71: 67 | L71: =RANDBETWEEN(0,50) -> 14 | M71: =IF(L71<25,RANDBETWEEN(0,100),RANDBETWEEN(0,200)) -> 21 | N71: =IF(L71>25,RANDBETWEEN(0,500),RANDBETWEEN(0,200)) -> 53
H72: 9 | I72: 36 | J72: 26 | L72: 9 | M72: 84 | N72: 140
H73: 31 | I73: 82 | J73: 195 | L73: 24 | M73: 96 | N73: 99
H74: 12 | I74: 38 | J74: 151 | L74: 14 | M74: 21 | N74: 14
H75: 37 | I75: 27 | J75: 234 | L75: 49 | M75: 85 | N75: 147
H76: 5 | I76: 56 | J76: 160 | L76: 47 | M76: 123 | N76: 116
H77: 2 | I77: 91 | J77: 159 | L77: 6 | M77: 45 | N77: 17
H78: 12 | I78: 92 | J78: 34 | L78: 20 | M78: 16 | N78: 25
H79: 34 | I79: 77 | J79: 482 | L79: 12 | M79: 33 | N79: 155
H80: 18 | I80: 13 | J80: 99 | L80: 48 | M80: 142 | N80: 364
H81: 9 | I81: 54 | J81: 116 | L81: 28 | M81: 53 | N81: 388
H82: 24 | I82: 50 | J82: 37 | L82: 3 | M82: 21 | N82: 164
H83: 24 | I83: 100 | J83: 155 | L83: 17 | M83: 11 | N83: 134
H84: 12 | I84: 24 | J84: 57 | L84: 43 | M84: 15 | N84: 180
H85: 48 | I85: 0 | J85: 136 | L85: 2 | M85: 92 | N85: 98
H86: 40 | I86: 25 | J86: 101 | L86: 28 | M86: 183 | N86: 419
H87: 15 | I87: 56 | J87: 41 | L87: 6 | M87: 56 | N87: 53
H88: 36 | I88: 184 | J88: 73 | L88: 37 | M88: 18 | N88: 151
H89: 42 | I89: 182 | J89: 364 | L89: 48 | M89: 102 | N89: 412
H90: 18 | I90: 20 | J90: 12 | L90: 8 | M90: 13 | N90: 79
H91: 32 | I91: 104 | J91: 224 | L91: 21 | M91: 58 | N91: 100
H92: 19 | I92: 76 | J92: 77 | L92: 39 | M92: 128 | N92: 221
H93: 9 | I93: 97 | J93: 11 | L93: 7 | M93: 80 | N93: 39
H94: 11 | I94: 4 | J94: 139 | L94: 23 | M94: 77 | N94: 116
H95: 10 | I95: 54 | J95: 183 | L95: 3 | M95: 40 | N95: 143
H96: 40 | I96: 18 | J96: 49 | L96: 13 | M96: 65 | N96: 14
H97: 50 | I97: 107 | J97: 188 | L97: 5 | M97: 77 | N97: 80
H98: 27 | I98: 93 | J98: 68 | L98: 36 | M98: 127 | N98: 251
H99: 2 | I99: 56 | J99: 91 | L99: 6 | M99: 83 | N99: 13
H100: 32 | I100: 169 | J100: 104 | L100: 13 | M100: 44 | N100: 198
H101: 47 | I101: 15 | J101: 421 | L101: 3 | M101: 77 | N101: 170
H102: 28 | I102: 90 | J102: 145 | L102: 7 | M102: 86 | N102: 121
H103: 11 | I103: 58 | J103: 197 | L103: 40 | M103: 43 | N103: 160
H104: 23 | I104: 24 | J104: 166 | L104: 38 | M104: 111 | N104: 165
H105: 50 | I105: 169 | J105: 409 | L105: 45 | M105: 35 | N105: 164
H106: 11 | I106: 12 | J106: 151 | L106: 9 | M106: 32 | N106: 14

Sheet Standardized Slope Coeff-A (hidden)
B1: PRACTICE CALCULATING STANDARDIZED SLOPE COEFFICIENTS (MULTIPLE LINEAR REGRESSION)
F4: =CORREL(F10:F110, H10:H110) -> 0.3936020303 | G4: =CORREL(G10:G110, H10:H110) -> 0.2552232331 | H4: =CORREL(G10:G110, F10:F110) -> 0.3005873046
B5: Standard Deviations
B6: Standard deviation of Variable X1 | D6: =ROUND(E6,2) -> 13.61 | E6: =_xlfn.STDEV.S(F10:F110) -> 13.6076711 | F6: =F4-(H4*G4) -> 0.3168851666 | G6: =1-(H4*H4) -> 0.9096472723 | H6: =F6/G6 -> 0.3483604868 | I6: =D8/D6 -> 9.39235856 | K6: =H6*I6 -> 3.2719266
B7: Standard deviation of Variable X2 | D7: =ROUND(E7,2) -> 57.51 | E7: =_xlfn.STDEV.S(G10:G110) -> 57.511552 | F7: =G4-(H4*F4) -> 0.1369114597 | H7: =F7/G6 -> 0.1505104934 | I7: =D8/D7 -> 2.222743871 | K7: =H7*I7 -> 0.3345462766
B8: Standard deviation of Variable Y | D8: =ROUND(E8,2) -> 127.83 | E8: =_xlfn.STDEV.S(H10:H110) -> 127.8270505 | F8: =AVERAGE(F10:F110) -> 28.65346535 | G8: =AVERAGE(G10:G110) -> 75.68316832 | H8: =AVERAGE(H10:H110) -> 183.6930693 | I8: =H8-(F8*K6)-(G8*K7) -> 64.62151169
F9: X1 | G9: X2 | H9: Y
B10: Linear Regression Coefficients (Unstandardized) | F10: 9 | G10: 82 | H10: 172 | J10: =RANDBETWEEN(0,50) -> 29 | K10: =IF(J10<25,RANDBETWEEN(0,100),RANDBETWEEN(0,200)) -> 191 | L10: =IF(J10>25,RANDBETWEEN(0,500),RANDBETWEEN(0,200)) -> 331
B11: Constant Coefficient (a) | D11: =ROUND(I8,2) -> 64.62 | F11: 12 | G11: 60 | H11: 196 | J11: =RANDBETWEEN(0,50) -> 1 | K11: =IF(J11<25,RANDBETWEEN(0,100),RANDBETWEEN(0,200)) -> 75 | L11: =IF(J11>25,RANDBETWEEN(0,500),RANDBETWEEN(0,200)) -> 39
B12: Slope Coefficient for Variable X1 (b1) | D12: =ROUND(K6,2) -> 3.27 | F12: 22 | G12: 29 | H12: 196 | J12: 14 | K12: 56 | L12: 83
B13: Slope Coefficient for Variable X2 (b2) | D13: =ROUND(K7,2) -> 0.33 | F13: 24 | G13: 37 | H13: 95 | J13: 7 | K13: 40 | L13: 185
F14: 31 | G14: 42 | H14: 343 | J14: 32 | K14: 79 | L14: 340
B15: Standardized Slope Coefficients | F15: 2 | G15: 87 | H15: 88 | J15: 40 | K15: 134 | L15: 497
B16: Standardized Slope Coefficient for Variable X1 (βx1) | D16: =D23 -> 0.3483 | F16: 33 | G16: 179 | H16: 373 | J16: 10 | K16: 87 | L16: 44
B17: Standardized Slope Coefficient for Variable X2 (βx2) | D17: =D29 -> 0.1485 | F17: 32 | G17: 186 | H17: 219 | J17: 43 | K17: 58 | L17: 71
F18: 10 | G18: 13 | H18: 92 | J18: 43 | K18: 13 | L18: 421
B19: STANDARDIZED SLOPE COEFFICIENT FOR VARIABLE X1 CALCULATIONS | F19: 45 | G19: 0 | H19: 270 | J19: 14 | K19: 25 | L19: 176
B20: Standardized Slope Coefficient (βx1) | F20: 35 | G20: 197 | H20: 494 | J20: 43 | K20: 101 | L20: 95
C21: =CONCATENATE("'= ",D12," x (",D6," ÷ ",D8,")") -> '= 3.27 x (13.61 ÷ 127.83) | F21: 28 | G21: 135 | H21: 168 | J21: 17 | K21: 50 | L21: 168
C22: =CONCATENATE("'= ",D12," x ",D22) -> '= 3.27 x 0.1065 | D22: =ROUND(D6/D8,4) -> 0.1065 | F22: 5 | G22: 97 | H22: 129 | J22: 33 | K22: 24 | L22: 493
C23: =CONCATENATE("'= ",D23) -> '= 0.3483 | D23: =ROUND(D12*D22,4) -> 0.3483 | F23: 50 | G23: 166 | H23: 300 | J23: 26 | K23: 28 | L23: 307
F24: 18 | G24: 81 | H24: 111 | J24: 45 | K24: 40 | L24: 201
B25: STANDARDIZED SLOPE COEFFICIENT FOR VARIABLE X2 CALCULATIONS | F25: 28 | G25: 118 | H25: 60 | J25: 12 | K25: 29 | L25: 61
B26: Standardized Slope Coefficient (βx2) | F26: 35 | G26: 169 | H26: 90 | J26: 44 | K26: 7 | L26: 52
C27: =CONCATENATE("'= ",D13," x (",D7," ÷ ",D8,")") -> '= 0.33 x (57.51 ÷ 127.83) | F27: 21 | G27: 49 | H27: 20 | J27: 36 | K27: 165 | L27: 35
C28: =CONCATENATE("'= ",D13," x ",D28) -> '= 0.33 x 0.4499 | D28: =ROUND(D7/D8,4) -> 0.4499 | F28: 47 | G28: 64 | H28: 160 | J28: 7 | K28: 86 | L28: 112
C29: =CONCATENATE("'= ",D29) -> '= 0.1485 | D29: =ROUND(D13*D28,4) -> 0.1485 | F29: 4 | G29: 30 | H29: 151 | J29: 23 | K29: 31 | L29: 45
F30: 21 | G30: 6 | H30: 6 | J30: 48 | K30: 45 | L30: 83
F31: 34 | G31: 100 | H31: 400 | J31: 35 | K31: 47 | L31: 391
F32: 36 | G32: 176 | H32: 184 | J32: 2 | K32: 61 | L32: 123
F33: 39 | G33: 187 | H33: 315 | J33: 27 | K33: 0 | L33: 424
F34: 20 | G34: 79 | H34: 122 | J34: 7 | K34: 43 | L34: 78
F35: 27 | G35: 170 | H35: 255 | J35: 10 | K35: 61 | L35: 139
F36: 46 | G36: 106 | H36: 328 | J36: 21 | K36: 32 | L36: 52
F37: 29 | G37: 147 | H37: 443 | J37: 49 | K37: 28 | L37: 289
F38: 34 | G38: 66 | H38: 91 | J38: 0 | K38: 93 | L38: 65
F39: 35 | G39: 6 | H39: 162 | J39: 9 | K39: 89 | L39: 145
F40: 47 | G40: 99 | H40: 393 | J40: 49 | K40: 77 | L40: 159
F41: 6 | G41: 36 | H41: 88 | J41: 41 | K41: 186 | L41: 420
F42: 6 | G42: 98 | H42: 144 | J42: 8 | K42: 92 | L42: 80
F43: 2 | G43: 7 | H43: 163 | J43: 49 | K43: 110 | L43: 411
F44: 26 | G44: 200 | H44: 443 | J44: 9 | K44: 25 | L44: 90
F45: 44 | G45: 2 | H45: 4 | J45: 21 | K45: 43 | L45: 135
F46: 17 | G46: 22 | H46: 183 | J46: 47 | K46: 149 | L46: 142
F47: 3 | G47: 11 | H47: 5 | J47: 38 | K47: 61 | L47: 174
F48: 42 | G48: 77 | H48: 260 | J48: 13 | K48: 1 | L48: 123
F49: 44 | G49: 143 | H49: 132 | J49: 5 | K49: 77 | L49: 19
F50: 42 | G50: 44 | H50: 305 | J50: 33 | K50: 7 | L50: 371
F51: 44 | G51: 13 | H51: 226 | J51: 44 | K51: 151 | L51: 428
F52: 21 | G52: 1 | H52: 142 | J52: 44 | K52: 121 | L52: 230
F53: 10 | G53: 37 | H53: 163 | J53: 16 | K53: 88 | L53: 27
F54: 39 | G54: 0 | H54: 393 | J54: 3 | K54: 56 | L54: 103
F55: 32 | G55: 153 | H55: 71 | J55: 39 | K55: 144 | L55: 451
F56: 14 | G56: 19 | H56: 184 | J56: 42 | K56: 11 | L56: 473
F57: 23 | G57: 61 | H57: 159 | J57: 40 | K57: 16 | L57: 240
F58: 3 | G58: 69 | H58: 10 | J58: 29 | K58: 4 | L58: 386
F59: 35 | G59: 169 | H59: 295 | J59: 43 | K59: 6 | L59: 83
F60: 31 | G60: 56 | H60: 123 | J60: 27 | K60: 125 | L60: 135
F61: 1 | G61: 52 | H61: 33 | J61: 13 | K61: 48 | L61: 134
F62: 24 | G62: 31 | H62: 15 | J62: 27 | K62: 124 | L62: 425
F63: 22 | G63: 57 | H63: 28 | J63: 25 | K63: 181 | L63: 104
F64: 17 | G64: 21 | H64: 67 | J64: 26 | K64: 34 | L64: 483
F65: 28 | G65: 46 | H65: 188 | J65: 34 | K65: 181 | L65: 454
F66: 44 | G66: 8 | H66: 122 | J66: 38 | K66: 58 | L66: 350
F67: 41 | G67: 177 | H67: 146 | J67: 12 | K67: 35 | L67: 113
F68: 40 | G68: 62 | H68: 218 | J68: 0 | K68: 31 | L68: 90
F69: 9 | G69: 27 | H69: 157 | J69: 39 | K69: 33 | L69: 389
F70: 43 | G70: 190 | H70: 218 | J70: 31 | K70: 135 | L70: 484
F71: 7 | G71: 50 | H71: 117 | J71: 11 | K71: 32 | L71: 198
F72: 30 | G72: 71 | H72: 280 | J72: 23 | K72: 41 | L72: 18
F73: 12 | G73: 31 | H73: 178 | J73: 2 | K73: 66 | L73: 6
F74: 26 | G74: 103 | H74: 374 | J74: 32 | K74: 167 | L74: 350
F75: 40 | G75: 6 | H75: 112 | J75: =RANDBETWEEN(0,50) -> 47 | K75: =IF(J75<25,RANDBETWEEN(0,100),RANDBETWEEN(0,200)) -> 93 | L75: =IF(J75>25,RANDBETWEEN(0,500),RANDBETWEEN(0,200)) -> 26
F76: 50 | G76: 124 | H76: 372 | J76: 0 | K76: 41 | L76: 78
F77: 40 | G77: 84 | H77: 379 | J77: 44 | K77: 191 | L77: 30
F78: 16 | G78: 94 | H78: 21 | J78: 11 | K78: 60 | L78: 154
F79: 37 | G79: 56 | H79: 67 | J79: 45 | K79: 2 | L79: 73
F80: 45 | G80: 128 | H80: 349 | J80: 50 | K80: 101 | L80: 284
F81: 33 | G81: 59 | H81: 274 | J81: 35 | K81: 89 | L81: 471
F82: 23 | G82: 34 | H82: 111 | J82: 28 | K82: 39 | L82: 186
F83: 19 | G83: 64 | H83: 170 | J83: 45 | K83: 20 | L83: 173
F84: 33 | G84: 27 | H84: 465 | J84: 8 | K84: 33 | L84: 172
F85: 46 | G85: 2 | H85: 300 | J85: 12 | K85: 31 | L85: 69
F86: 12 | G86: 27 | H86: 35 | J86: 12 | K86: 84 | L86: 65
F87: 39 | G87: 194 | H87: 9 | J87: 5 | K87: 68 | L87: 3
F88: 48 | G88: 109 | H88: 16 | J88: 18 | K88: 31 | L88: 200
F89: 38 | G89: 19 | H89: 419 | J89: 7 | K89: 3 | L89: 127
F90: 41 | G90: 139 | H90: 46 | J90: 34 | K90: 119 | L90: 319
F91: 32 | G91: 41 | H91: 172 | J91: 6 | K91: 43 | L91: 200
F92: 50 | G92: 180 | H92: 189 | J92: 15 | K92: 58 | L92: 62
F93: 30 | G93: 104 | H93: 226 | J93: 42 | K93: 98 | L93: 50
F94: 23 | G94: 76 | H94: 187 | J94: 25 | K94: 130 | L94: 139
F95: 45 | G95: 30 | H95: 124 | J95: 29 | K95: 175 | L95: 65
F96: 19 | G96: 4 | H96: 108 | J96: 41 | K96: 21 | L96: 426
F97: 39 | G97: 79 | H97: 316 | J97: 45 | K97: 160 | L97: 366
F98: 39 | G98: 116 | H98: 59 | J98: 3 | K98: 30 | L98: 164
F99: 33 | G99: 107 | H99: 471 | J99: 19 | K99: 64 | L99: 199
F100: 27 | G100: 47 | H100: 91 | J100: 26 | K100: 113 | L100: 326
F101: 11 | G101: 33 | H101: 76 | J101: 5 | K101: 7 | L101: 123
F102: 27 | G102: 75 | H102: 15 | J102: 40 | K102: 53 | L102: 495
F103: 29 | G103: 77 | H103: 33 | J103: 20 | K103: 39 | L103: 96
F104: 48 | G104: 115 | H104: 404 | J104: 26 | K104: 122 | L104: 162
F105: 30 | G105: 139 | H105: 65 | J105: 16 | K105: 68 | L105: 186
F106: 34 | G106: 50 | H106: 26 | J106: 46 | K106: 71 | L106: 328
F107: 10 | G107: 45 | H107: 146 | J107: 49 | K107: 35 | L107: 325
F108: 36 | G108: 16 | H108: 190 | J108: 48 | K108: 138 | L108: 63
F109: 42 | G109: 9 | H109: 184 | J109: 44 | K109: 60 | L109: 36
F110: 43 | G110: 28 | H110: 266 | J110: 3 | K110: 5 | L110: 14
